[Event "Betsys MČR v online bleskovém šachu 2021"]
[Site "Chess.com"]
[Date "2021.04.17"]
[Round "5"]
[White "trosecnik"]
[Black "androidddd"]
[Result "1-0"]
[WhiteElo "1841"]
[BlackElo "1424"]
[TimeControl "180+1"]
[EndTime "9:48:37 PDT"]
[Termination "Uživatel trosecnik zvítězil matem"]

1. e4 {[%clk 0:02:59]} 1... c6 {[%clk 0:02:59.2]} 2. Nc3 {[%clk 0:02:58.1]} 2...
d5 {[%clk 0:02:55.4]} 3. Nf3 {[%clk 0:02:58.2]} 3... dxe4 {[%clk 0:02:54.5]} 4.
Nxe4 {[%clk 0:02:59.1]} 4... Nd7 {[%clk 0:02:54.1]} 5. d4 {[%clk 0:02:56.3]}
5... Ngf6 {[%clk 0:02:51.8]} 6. Bd3 {[%clk 0:02:57]} 6... Nxe4 {[%clk
0:02:51.3]} 7. Bxe4 {[%clk 0:02:57.9]} 7... Nf6 {[%clk 0:02:51.2]} 8. Qe2 {[%clk
0:02:51.6]} 8... Bg4 {[%clk 0:02:48.1]} 9. c3 {[%clk 0:02:49]} 9... e6 {[%clk
0:02:45.3]} 10. Bc2 {[%clk 0:02:46.2]} 10... Be7 {[%clk 0:02:39]} 11. h3 {[%clk
0:02:46.2]} 11... Bxf3 {[%clk 0:02:37.2]} 12. Qxf3 {[%clk 0:02:47.1]} 12... Qd5
{[%clk 0:02:35.7]} 13. Qxd5 {[%clk 0:02:25.7]} 13... Nxd5 {[%clk 0:02:31.6]} 14.
O-O {[%clk 0:02:21.9]} 14... Bf6 {[%clk 0:02:26.1]} 15. Re1 {[%clk 0:02:18.9]}
15... O-O {[%clk 0:02:17.7]} 16. Bd2 {[%clk 0:02:17.3]} 16... Rfe8 {[%clk
0:02:10.1]} 17. Re2 {[%clk 0:02:07.3]} 17... Rac8 {[%clk 0:02:07.2]} 18. Rae1
{[%clk 0:02:07]} 18... c5 {[%clk 0:02:04.9]} 19. dxc5 {[%clk 0:02:02.2]} 19...
Rxc5 {[%clk 0:02:02.7]} 20. Be4 {[%clk 0:01:57.4]} 20... b6 {[%clk 0:01:51.7]}
21. b4 {[%clk 0:01:53.3]} 21... Nxb4 {[%clk 0:01:25.5]} 22. cxb4 {[%clk
0:01:51]} 22... Rc4 {[%clk 0:01:24.7]} 23. Bd3 {[%clk 0:01:27.4]} 23... Rd4
{[%clk 0:01:23.2]} 24. Bb5 {[%clk 0:01:28]} 24... Red8 {[%clk 0:01:19.1]} 25.
Bc3 {[%clk 0:01:19.1]} 25... R4d5 {[%clk 0:01:17.3]} 26. Bxf6 {[%clk 0:01:18]}
26... gxf6 {[%clk 0:01:16.3]} 27. Bc4 {[%clk 0:01:12]} 27... Rd4 {[%clk
0:01:15.7]} 28. Bb3 {[%clk 0:01:00.4]} 28... Rxb4 {[%clk 0:01:14.2]} 29. g3
{[%clk 0:00:58.3]} 29... Rbd4 {[%clk 0:01:12.7]} 30. Kg2 {[%clk 0:00:57.3]}
30... e5 {[%clk 0:01:11.8]} 31. h4 {[%clk 0:00:54.6]} 31... a5 {[%clk
0:01:11.5]} 32. Re4 {[%clk 0:00:48.9]} 32... a4 {[%clk 0:01:00.4]} 33. Rxd4
{[%clk 0:00:40.9]} 33... Rxd4 {[%clk 0:01:00.5]} 34. Bc2 {[%clk 0:00:36.6]}
34... Rd2 {[%clk 0:00:58]} 35. Bxa4 {[%clk 0:00:35.6]} 35... Rxa2 {[%clk
0:00:58.1]} 36. Bd7 {[%clk 0:00:33.1]} 36... Rb2 {[%clk 0:00:55.1]} 37. Rc1
{[%clk 0:00:33.4]} 37... b5 {[%clk 0:00:53.8]} 38. Rc8+ {[%clk 0:00:28.2]} 38...
Kg7 {[%clk 0:00:53.2]} 39. Rb8 {[%clk 0:00:23.4]} 39... b4 {[%clk 0:00:52.6]}
40. Rb7 {[%clk 0:00:23.7]} 40... Kg6 {[%clk 0:00:41.8]} 41. Bc6 {[%clk 0:00:14]}
41... f5 {[%clk 0:00:32.5]} 42. Bd5 {[%clk 0:00:13]} 42... f6 {[%clk 0:00:28.4]}
43. Bf7+ {[%clk 0:00:13.2]} 43... Kh6 {[%clk 0:00:28.3]} 44. Be6 {[%clk
0:00:11.2]} 44... Kg6 {[%clk 0:00:27.5]} 45. h5+ {[%clk 0:00:10.9]} 45... Kxh5
{[%clk 0:00:26.5]} 46. Bxf5 {[%clk 0:00:10.8]} 46... Kg5 {[%clk 0:00:26.9]} 47.
Bxh7 {[%clk 0:00:10]} 47... b3 {[%clk 0:00:26]} 48. Bg8 {[%clk 0:00:10]} 48...
e4 {[%clk 0:00:23]} 49. Rxb3 {[%clk 0:00:10]} 49... Rc2 {[%clk 0:00:21.5]} 50.
Bd5 {[%clk 0:00:08.6]} 50... f5 {[%clk 0:00:18.6]} 51. Be6 {[%clk 0:00:05.8]}
51... Kg4 {[%clk 0:00:16]} 52. Rb5 {[%clk 0:00:05.4]} 52... e3 {[%clk
0:00:15.1]} 53. Bxf5+ {[%clk 0:00:05.9]} 53... Kg5 {[%clk 0:00:13.6]} 54. Bxc2+
{[%clk 0:00:06.1]} 54... Kg4 {[%clk 0:00:13.6]} 55. Bd3 {[%clk 0:00:06.2]} 55...
exf2 {[%clk 0:00:12.7]} 56. Kxf2 {[%clk 0:00:06.5]} 56... Kh3 {[%clk 0:00:12.8]}
57. Kf3 {[%clk 0:00:06]} 57... Kh2 {[%clk 0:00:12.1]} 58. Rh5+ {[%clk
0:00:06.2]} 58... Kg1 {[%clk 0:00:12]} 59. Rg5 {[%clk 0:00:06]} 59... Kh2 {[%clk
0:00:11.9]} 60. g4 {[%clk 0:00:06]} 60... Kg1 {[%clk 0:00:12.1]} 61. Rf5 {[%clk
0:00:06.5]} 61... Kh2 {[%clk 0:00:12.3]} 62. g5 {[%clk 0:00:07.4]} 62... Kh3
{[%clk 0:00:12.5]} 63. g6 {[%clk 0:00:08.3]} 63... Kh4 {[%clk 0:00:13]} 64. g7
{[%clk 0:00:09]} 64... Kh3 {[%clk 0:00:13.1]} 65. Rf6 {[%clk 0:00:09.3]} 65...
Kh2 {[%clk 0:00:12.8]} 66. g8=Q {[%clk 0:00:09.8]} 66... Kh1 {[%clk 0:00:12]}
67. Rh6# {[%clk 0:00:10.5]} 1-0

[Event "Betsys MČR v online bleskovém šachu 2021"]
[Site "Chess.com"]
[Date "2021.04.17"]
[Round "5"]
[White "matyson523"]
[Black "Joanna23W"]
[Result "0-1"]
[WhiteElo "1813"]
[BlackElo "2674"]
[TimeControl "180+1"]
[EndTime "9:48:42 PDT"]
[Termination "Uživatel Joanna23W zvítězil matem"]

1. e4 {[%clk 0:03:00.9]} 1... c5 {[%clk 0:02:59.5]} 2. Nf3 {[%clk 0:03:00.8]}
2... Nc6 {[%clk 0:02:59.3]} 3. Bb5 {[%clk 0:03:00.1]} 3... g6 {[%clk 0:02:58.6]}
4. Nc3 {[%clk 0:02:59.4]} 4... Bg7 {[%clk 0:02:58.5]} 5. O-O {[%clk 0:02:59.3]}
5... Nd4 {[%clk 0:02:54.6]} 6. d3 {[%clk 0:02:57.4]} 6... Nxb5 {[%clk
0:02:53.6]} 7. Nxb5 {[%clk 0:02:58.3]} 7... a6 {[%clk 0:02:53.5]} 8. Nc3 {[%clk
0:02:58.2]} 8... b5 {[%clk 0:02:53.7]} 9. Be3 {[%clk 0:02:56]} 9... d6 {[%clk
0:02:51.2]} 10. e5 {[%clk 0:02:53.8]} 10... Bb7 {[%clk 0:02:38.2]} 11. Ne4
{[%clk 0:02:51.5]} 11... Rc8 {[%clk 0:02:31.2]} 12. Re1 {[%clk 0:02:47.1]} 12...
Bxe4 {[%clk 0:02:18.9]} 13. dxe4 {[%clk 0:02:44.9]} 13... dxe5 {[%clk
0:02:08.3]} 14. Qe2 {[%clk 0:02:43.7]} 14... Qc7 {[%clk 0:02:01.3]} 15. Rad1
{[%clk 0:02:40.8]} 15... Nf6 {[%clk 0:01:59.6]} 16. Bg5 {[%clk 0:02:27.4]} 16...
Nd7 {[%clk 0:01:46.9]} 17. Qd2 {[%clk 0:02:18.2]} 17... Nb6 {[%clk 0:01:44.5]}
18. Qa5 {[%clk 0:02:13]} 18... Qb7 {[%clk 0:01:26.9]} 19. Be3 {[%clk 0:02:03]}
19... O-O {[%clk 0:01:25.3]} 20. Qc3 {[%clk 0:01:50.5]} 20... Nc4 {[%clk
0:00:56]} 21. Rd5 {[%clk 0:01:47]} 21... Nd6 {[%clk 0:00:41.4]} 22. Bxc5 {[%clk
0:01:40.2]} 22... Nxe4 {[%clk 0:00:41.5]} 23. Qd3 {[%clk 0:01:09.6]} 23... Nxc5
{[%clk 0:00:40.1]} 24. Qd2 {[%clk 0:01:07.7]} 24... e4 {[%clk 0:00:39.6]} 25.
Ng5 {[%clk 0:01:05.5]} 25... h6 {[%clk 0:00:27.6]} 26. Nxe4 {[%clk 0:01:04.3]}
26... Nxe4 {[%clk 0:00:27.8]} 27. Rxe4 {[%clk 0:01:05.1]} 27... Rxc2 {[%clk
0:00:27.9]} 28. Qxc2 {[%clk 0:00:59.4]} 28... Qxd5 {[%clk 0:00:25.6]} 29. h3
{[%clk 0:00:59.2]} 29... Qxa2 {[%clk 0:00:24.7]} 30. Rxe7 {[%clk 0:00:57.2]}
30... Qxb2 {[%clk 0:00:23.1]} 31. Qc7 {[%clk 0:00:53.7]} 31... Qa1+ {[%clk
0:00:17.8]} 32. Kh2 {[%clk 0:00:52.6]} 32... a5 {[%clk 0:00:15.5]} 33. h4 {[%clk
0:00:44.6]} 33... b4 {[%clk 0:00:14.1]} 34. h5 {[%clk 0:00:44.9]} 34... gxh5
{[%clk 0:00:11.7]} 35. Qg3 {[%clk 0:00:38.8]} 35... Qf6 {[%clk 0:00:07]} 36. Ra7
{[%clk 0:00:36.1]} 36... Qe5 {[%clk 0:00:07.2]} 37. f4 {[%clk 0:00:32.7]} 37...
Qc5 {[%clk 0:00:06.6]} 38. f5 {[%clk 0:00:24]} 38... Kh8 {[%clk 0:00:03.4]} 39.
Rd7 {[%clk 0:00:19.9]} 39... Be5 {[%clk 0:00:02.5]} 40. Rd3 {[%clk 0:00:15.1]}
40... Bxg3+ {[%clk 0:00:02.4]} 41. Rxg3 {[%clk 0:00:15.7]} 41... Qc4 {[%clk
0:00:03]} 42. f6 {[%clk 0:00:14.7]} 42... b3 {[%clk 0:00:03.9]} 43. Rg7 {[%clk
0:00:13.6]} 43... b2 {[%clk 0:00:04.8]} 44. Kg3 {[%clk 0:00:10.1]} 44... b1=Q
{[%clk 0:00:05.7]} 45. Kh2 {[%clk 0:00:08.5]} 45... Qbd3 {[%clk 0:00:06.6]} 46.
g3 {[%clk 0:00:07.3]} 46... Qf4 {[%clk 0:00:07.5]} 47. gxf4 {[%clk 0:00:06.3]}
47... Qe2+ {[%clk 0:00:08.4]} 48. Kh3 {[%clk 0:00:06.4]} 48... Qf3+ {[%clk
0:00:07.7]} 49. Rg3 {[%clk 0:00:05.8]} 49... Qxf4 {[%clk 0:00:07.9]} 50. Kh2
{[%clk 0:00:04.9]} 50... Qxf6 {[%clk 0:00:07.5]} 51. Kh3 {[%clk 0:00:04.9]}
51... Qf4 {[%clk 0:00:07.7]} 52. Kg2 {[%clk 0:00:04]} 52... h4 {[%clk
0:00:07.7]} 53. Rf3 {[%clk 0:00:02.8]} 53... Qxf3+ {[%clk 0:00:07.8]} 54. Kxf3
{[%clk 0:00:01.6]} 54... a4 {[%clk 0:00:08.4]} 55. Kg4 {[%clk 0:00:01.7]} 55...
a3 {[%clk 0:00:07.4]} 56. Kxh4 {[%clk 0:00:02.2]} 56... a2 {[%clk 0:00:08.3]}
57. Kh5 {[%clk 0:00:02.8]} 57... a1=Q {[%clk 0:00:09.2]} 58. Kxh6 {[%clk
0:00:03.5]} 58... Qf6+ {[%clk 0:00:08]} 59. Kh5 {[%clk 0:00:03.7]} 59... Qg6+
{[%clk 0:00:07.8]} 60. Kh4 {[%clk 0:00:03.7]} 60... Kg7 {[%clk 0:00:08.2]} 61.
Kh3 {[%clk 0:00:03.8]} 61... Rh8# {[%clk 0:00:08.4]} 0-1

[Event "Betsys MČR v online bleskovém šachu 2021"]
[Site "Chess.com"]
[Date "2021.04.17"]
[Round "5"]
[White "Listro33"]
[Black "Klapuch05"]
[Result "0-1"]
[WhiteElo "1860"]
[BlackElo "1574"]
[TimeControl "180+1"]
[EndTime "9:48:46 PDT"]
[Termination "Uživatel Klapuch05 zvítězil na čas"]

1. d4 {[%clk 0:03:00.9]} 1... Nf6 {[%clk 0:02:59.7]} 2. Bf4 {[%clk 0:03:01.3]}
2... d5 {[%clk 0:02:59.5]} 3. e3 {[%clk 0:03:00.5]} 3... c5 {[%clk 0:02:59.7]}
4. c3 {[%clk 0:03:00.1]} 4... Nc6 {[%clk 0:03:00]} 5. Nf3 {[%clk 0:02:59]} 5...
Qb6 {[%clk 0:03:00.2]} 6. Qb3 {[%clk 0:02:56.5]} 6... Bf5 {[%clk 0:02:55.3]} 7.
dxc5 {[%clk 0:02:54.3]} 7... Qxb3 {[%clk 0:02:54.4]} 8. axb3 {[%clk 0:02:53.2]}
8... e6 {[%clk 0:02:35.9]} 9. b4 {[%clk 0:02:46]} 9... a5 {[%clk 0:02:28.1]} 10.
Nbd2 {[%clk 0:02:41.3]} 10... Be7 {[%clk 0:02:23.2]} 11. Bb5 {[%clk 0:02:39.5]}
11... O-O {[%clk 0:02:18.7]} 12. Bxc6 {[%clk 0:02:38.9]} 12... bxc6 {[%clk
0:02:19]} 13. bxa5 {[%clk 0:02:38.9]} 13... Bxc5 {[%clk 0:02:17.2]} 14. b4
{[%clk 0:02:27.4]} 14... Be7 {[%clk 0:02:12.2]} 15. O-O {[%clk 0:02:26.8]} 15...
Nd7 {[%clk 0:02:12.1]} 16. Ne5 {[%clk 0:02:22.7]} 16... Nxe5 {[%clk 0:02:08.6]}
17. Bxe5 {[%clk 0:02:23.6]} 17... f6 {[%clk 0:02:08.8]} 18. Bd4 {[%clk
0:01:46.8]} 18... e5 {[%clk 0:02:05.9]} 19. Bb6 {[%clk 0:01:46.3]} 19... Rfc8
{[%clk 0:01:48.1]} 20. Nb3 {[%clk 0:01:45.5]} 20... Bd3 {[%clk 0:01:28.8]} 21.
Rfc1 {[%clk 0:01:41.7]} 21... Bc4 {[%clk 0:01:28.8]} 22. Nc5 {[%clk 0:01:37.6]}
22... Bxc5 {[%clk 0:01:18.2]} 23. Bxc5 {[%clk 0:01:36.3]} 23... Ra6 {[%clk
0:01:16.9]} 24. h3 {[%clk 0:01:31.7]} 24... Kf7 {[%clk 0:01:13.6]} 25. f4 {[%clk
0:01:28.5]} 25... Ke6 {[%clk 0:01:13.2]} 26. fxe5 {[%clk 0:01:22.4]} 26... fxe5
{[%clk 0:01:14.1]} 27. Rc2 {[%clk 0:01:19.7]} 27... Rc7 {[%clk 0:01:09.1]} 28.
Rf2 {[%clk 0:01:13.7]} 28... Rf7 {[%clk 0:01:08.6]} 29. Rxf7 {[%clk 0:01:05.2]}
29... Kxf7 {[%clk 0:01:08.2]} 30. Kf2 {[%clk 0:01:03.1]} 30... Kg6 {[%clk
0:01:06.7]} 31. Kg3 {[%clk 0:01:02.5]} 31... Kf5 {[%clk 0:01:07.1]} 32. Kf3
{[%clk 0:00:54.7]} 32... g5 {[%clk 0:00:51.9]} 33. g4+ {[%clk 0:00:42.2]} 33...
Ke6 {[%clk 0:00:46.5]} 34. Kg3 {[%clk 0:00:39.5]} 34... Kf6 {[%clk 0:00:35.8]}
35. Rh1 {[%clk 0:00:35.8]} 35... h6 {[%clk 0:00:19.6]} 36. h4 {[%clk 0:00:34.5]}
36... Kg6 {[%clk 0:00:19.3]} 37. hxg5 {[%clk 0:00:33.4]} 37... hxg5 {[%clk
0:00:19.9]} 38. Rh8 {[%clk 0:00:32.1]} 38... Bb5 {[%clk 0:00:18.8]} 39. Rg8+
{[%clk 0:00:25.8]} 39... Kf6 {[%clk 0:00:16.8]} 40. Re8 {[%clk 0:00:19.5]} 40...
Bc4 {[%clk 0:00:14.8]} 41. Bd6 {[%clk 0:00:17.5]} 41... e4 {[%clk 0:00:14.3]}
42. Bc5 {[%clk 0:00:16.9]} 42... Bb5 {[%clk 0:00:14.3]} 43. Bd4+ {[%clk
0:00:15.9]} 43... Kg6 {[%clk 0:00:14.2]} 44. Re6+ {[%clk 0:00:15]} 44... Kf7
{[%clk 0:00:12.9]} 45. Rf6+ {[%clk 0:00:14.1]} 45... Kg7 {[%clk 0:00:12.5]} 46.
Rxc6+ {[%clk 0:00:13.3]} 46... Kh7 {[%clk 0:00:11.8]} 47. Rxa6 {[%clk
0:00:12.8]} 47... Bxa6 {[%clk 0:00:12]} 48. Bf6 {[%clk 0:00:10.6]} 48... Kg6
{[%clk 0:00:12]} 49. Bd8 {[%clk 0:00:10.1]} 49... Kh6 {[%clk 0:00:12.3]} 50. Kf2
{[%clk 0:00:09.5]} 50... Kg6 {[%clk 0:00:12.7]} 51. Ke1 {[%clk 0:00:09]} 51...
Bd3 {[%clk 0:00:12.4]} 52. Kd2 {[%clk 0:00:08.6]} 52... Bc4 {[%clk 0:00:12.7]}
53. Kc2 {[%clk 0:00:08.1]} 53... Kh6 {[%clk 0:00:12.8]} 54. Kb2 {[%clk
0:00:07.4]} 54... Kg6 {[%clk 0:00:13.1]} 55. Ka3 {[%clk 0:00:07.4]} 55... Kh6
{[%clk 0:00:13.4]} 56. Ka4 {[%clk 0:00:07]} 56... d4 {[%clk 0:00:12.9]} 57. cxd4
{[%clk 0:00:06.1]} 57... Kg6 {[%clk 0:00:12.8]} 58. b5 {[%clk 0:00:05.9]} 58...
Bd5 {[%clk 0:00:12.8]} 59. b6 {[%clk 0:00:05]} 59... Kf7 {[%clk 0:00:12.7]} 60.
Kb5 {[%clk 0:00:04.1]} 60... Ke6 {[%clk 0:00:12.9]} 61. Bxg5 {[%clk 0:00:03.4]}
61... Kd7 {[%clk 0:00:12.7]} 62. a6 {[%clk 0:00:02.3]} 62... Kc8 {[%clk
0:00:12.7]} 63. Bf4 {[%clk 0:00:01.7]} 63... Be6 {[%clk 0:00:10.9]} 64. b7+
{[%clk 0:00:01.2]} 64... Kd7 {[%clk 0:00:11]} 0-1

[Event "Betsys MČR v online bleskovém šachu 2021"]
[Site "Chess.com"]
[Date "2021.04.17"]
[Round "5"]
[White "prosinec"]
[Black "Eliska0107"]
[Result "1-0"]
[WhiteElo "1738"]
[BlackElo "1990"]
[TimeControl "180+1"]
[EndTime "9:48:52 PDT"]
[Termination "Uživatel prosinec zvítězil na čas"]

1. Nf3 {[%clk 0:03:00.9]} 1... d5 {[%clk 0:02:58.9]} 2. d4 {[%clk 0:03:00.4]}
2... Nf6 {[%clk 0:02:57.9]} 3. c4 {[%clk 0:02:57.9]} 3... g6 {[%clk 0:02:57.9]}
4. Nc3 {[%clk 0:02:57.5]} 4... Bg7 {[%clk 0:02:57.5]} 5. Bf4 {[%clk 0:02:56.9]}
5... c6 {[%clk 0:02:56.5]} 6. e3 {[%clk 0:02:56.5]} 6... O-O {[%clk 0:02:56.5]}
7. h3 {[%clk 0:02:56.5]} 7... Nbd7 {[%clk 0:02:49.3]} 8. Be2 {[%clk 0:02:56.3]}
8... Re8 {[%clk 0:02:48.8]} 9. O-O {[%clk 0:02:55.9]} 9... Ne4 {[%clk
0:02:44.8]} 10. Qc2 {[%clk 0:02:47.2]} 10... Ndf6 {[%clk 0:02:40.7]} 11. cxd5
{[%clk 0:02:44.9]} 11... Nxc3 {[%clk 0:02:38.1]} 12. bxc3 {[%clk 0:02:43.3]}
12... cxd5 {[%clk 0:02:36.6]} 13. c4 {[%clk 0:02:40.7]} 13... Be6 {[%clk
0:02:35.3]} 14. c5 {[%clk 0:02:26.6]} 14... Bd7 {[%clk 0:02:14.3]} 15. Ne5
{[%clk 0:02:21.7]} 15... Bc6 {[%clk 0:02:14]} 16. Nxc6 {[%clk 0:02:18.6]} 16...
bxc6 {[%clk 0:02:13.5]} 17. a4 {[%clk 0:02:17.7]} 17... e5 {[%clk 0:02:03]} 18.
Bxe5 {[%clk 0:02:16.1]} 18... Rxe5 {[%clk 0:02:00.8]} 19. dxe5 {[%clk
0:02:15.3]} 19... Nd7 {[%clk 0:01:58.5]} 20. f4 {[%clk 0:02:13.4]} 20... Qe7
{[%clk 0:01:55.9]} 21. Rfc1 {[%clk 0:02:10.3]} 21... f6 {[%clk 0:01:48.9]} 22.
Bg4 {[%clk 0:01:46.4]} 22... fxe5 {[%clk 0:01:46.5]} 23. Bxd7 {[%clk 0:01:45.2]}
23... Qxd7 {[%clk 0:01:46.6]} 24. fxe5 {[%clk 0:01:43.8]} 24... Bxe5 {[%clk
0:01:46.1]} 25. Rab1 {[%clk 0:01:43.1]} 25... Re8 {[%clk 0:01:40.3]} 26. Rf1
{[%clk 0:01:42.2]} 26... Qe7 {[%clk 0:01:34.3]} 27. Kh1 {[%clk 0:01:32]} 27...
Bc7 {[%clk 0:01:32]} 28. Rf3 {[%clk 0:01:29.9]} 28... Qe5 {[%clk 0:01:28.8]} 29.
Kg1 {[%clk 0:01:24.7]} 29... Qh2+ {[%clk 0:01:14.6]} 30. Kf2 {[%clk 0:01:24.6]}
30... Be5 {[%clk 0:01:10.3]} 31. Qb3 {[%clk 0:01:14.3]} 31... Kh8 {[%clk
0:01:07.4]} 32. Rd1 {[%clk 0:00:58.6]} 32... Bg7 {[%clk 0:01:00.6]} 33. Qb7
{[%clk 0:00:53.1]} 33... Qe5 {[%clk 0:00:57.8]} 34. Rb1 {[%clk 0:00:43.3]} 34...
d4 {[%clk 0:00:51.5]} 35. exd4 {[%clk 0:00:35.9]} 35... Qxd4+ {[%clk 0:00:50.4]}
36. Kf1 {[%clk 0:00:16.5]} 36... Qxc5 {[%clk 0:00:47.4]} 37. Re1 {[%clk
0:00:12.9]} 37... Qc4+ {[%clk 0:00:42.1]} 38. Kf2 {[%clk 0:00:09.9]} 38... Bd4+
{[%clk 0:00:39]} 39. Kg3 {[%clk 0:00:08.4]} 39... Qg8 {[%clk 0:00:19.8]} 40.
Rxe8 {[%clk 0:00:07]} 40... Qxe8 {[%clk 0:00:19.7]} 41. Qf7 {[%clk 0:00:06.6]}
41... Be5+ {[%clk 0:00:18.9]} 42. Kf2 {[%clk 0:00:05]} 42... Qxf7 {[%clk
0:00:17.3]} 43. Rxf7 {[%clk 0:00:05.9]} 43... Bd4+ {[%clk 0:00:17.2]} 44. Ke2
{[%clk 0:00:05.2]} 44... c5 {[%clk 0:00:17.1]} 45. Rxa7 {[%clk 0:00:03.9]} 45...
c4 {[%clk 0:00:16.6]} 46. Ra8+ {[%clk 0:00:04.8]} 46... Kg7 {[%clk 0:00:16.2]}
47. Rd8 {[%clk 0:00:05.1]} 47... Bf6 {[%clk 0:00:15.8]} 48. Rc8 {[%clk
0:00:04.9]} 48... c3 {[%clk 0:00:15.8]} 49. Kd3 {[%clk 0:00:04.9]} 49... Kf7
{[%clk 0:00:16.1]} 50. a5 {[%clk 0:00:04.7]} 50... Ke7 {[%clk 0:00:16.4]} 51.
Rc7+ {[%clk 0:00:04.3]} 51... Kd6 {[%clk 0:00:16.1]} 52. Rxh7 {[%clk 0:00:04.3]}
52... Kc6 {[%clk 0:00:16]} 53. a6 {[%clk 0:00:04.1]} 53... Kd5 {[%clk
0:00:12.1]} 54. a7 {[%clk 0:00:03.9]} 54... Bd4 {[%clk 0:00:12.2]} 55. a8=Q+
{[%clk 0:00:03.8]} 55... Ke5 {[%clk 0:00:11.2]} 56. Qa5+ {[%clk 0:00:03.5]}
56... Kf6 {[%clk 0:00:10.7]} 57. Qxc3 {[%clk 0:00:04.4]} 57... Bxc3 {[%clk
0:00:10.1]} 58. Kxc3 {[%clk 0:00:05.3]} 58... Kg5 {[%clk 0:00:10.1]} 59. Ra7
{[%clk 0:00:06.2]} 59... Kf6 {[%clk 0:00:10.3]} 60. Ra6+ {[%clk 0:00:07.1]}
60... Kf5 {[%clk 0:00:10.6]} 61. Kd3 {[%clk 0:00:08]} 61... g5 {[%clk
0:00:09.7]} 62. Ke2 {[%clk 0:00:08.9]} 62... Kf4 {[%clk 0:00:10]} 63. Kf2 {[%clk
0:00:09.8]} 63... g4 {[%clk 0:00:10.3]} 64. g3+ {[%clk 0:00:10.7]} 64... Kf5
{[%clk 0:00:08.9]} 65. h4 {[%clk 0:00:11.5]} 65... Ke4 {[%clk 0:00:08.3]} 66. h5
{[%clk 0:00:11.5]} 66... Kf5 {[%clk 0:00:08.7]} 67. h6 {[%clk 0:00:12.4]} 1-0

[Event "Betsys MČR v online bleskovém šachu 2021"]
[Site "Chess.com"]
[Date "2021.04.17"]
[Round "5"]
[White "JosefBara"]
[Black "milanpetras"]
[Result "0-1"]
[WhiteElo "1302"]
[BlackElo "1833"]
[TimeControl "180+1"]
[EndTime "9:48:57 PDT"]
[Termination "Uživatel milanpetras zvítězil po vzdání soupeře"]

1. d4 {[%clk 0:03:00.9]} 1... d5 {[%clk 0:02:58.7]} 2. c4 {[%clk 0:03:01]} 2...
e6 {[%clk 0:02:57.5]} 3. Nc3 {[%clk 0:03:01.2]} 3... c5 {[%clk 0:02:56.1]} 4.
Nf3 {[%clk 0:03:01.4]} 4... Nc6 {[%clk 0:02:48]} 5. cxd5 {[%clk 0:03:01]} 5...
exd5 {[%clk 0:02:46.1]} 6. Bg5 {[%clk 0:02:56.5]} 6... Be7 {[%clk 0:02:26.1]} 7.
Bxe7 {[%clk 0:02:54.9]} 7... Ngxe7 {[%clk 0:02:26.1]} 8. dxc5 {[%clk 0:02:50]}
8... O-O {[%clk 0:02:24.9]} 9. e3 {[%clk 0:02:47.8]} 9... Be6 {[%clk 0:02:15.7]}
10. Be2 {[%clk 0:02:43.4]} 10... Qa5 {[%clk 0:02:14.9]} 11. O-O {[%clk
0:02:29.7]} 11... Qxc5 {[%clk 0:02:13.2]} 12. Rc1 {[%clk 0:02:27.5]} 12... Qa5
{[%clk 0:02:09]} 13. a3 {[%clk 0:02:24.6]} 13... Rfd8 {[%clk 0:02:03.2]} 14. Qa4
{[%clk 0:01:55.6]} 14... Qb6 {[%clk 0:01:57.9]} 15. b4 {[%clk 0:01:47.9]} 15...
Rac8 {[%clk 0:01:54.2]} 16. Qc2 {[%clk 0:01:42.5]} 16... d4 {[%clk 0:01:45.6]}
17. exd4 {[%clk 0:01:39.8]} 17... Nxd4 {[%clk 0:01:45.2]} 18. Nxd4 {[%clk
0:01:39.3]} 18... Qxd4 {[%clk 0:01:38.7]} 19. Qb2 {[%clk 0:01:35.2]} 19... Qe5
{[%clk 0:01:34]} 20. Bf3 {[%clk 0:01:28.9]} 20... b6 {[%clk 0:01:29.3]} 21. Rfe1
{[%clk 0:01:20.8]} 21... Qf6 {[%clk 0:01:28.3]} 22. g3 {[%clk 0:00:59.9]} 22...
h6 {[%clk 0:01:26.7]} 23. Qa1 {[%clk 0:00:53.8]} 23... Nf5 {[%clk 0:01:12.2]}
24. Ne4 {[%clk 0:00:52.4]} 24... Qxa1 {[%clk 0:01:09.7]} 25. Rxa1 {[%clk
0:00:51.1]} 25... Nd4 {[%clk 0:01:08.3]} 26. Bd1 {[%clk 0:00:42.1]} 26... Bf5
{[%clk 0:01:00.2]} 27. f3 {[%clk 0:00:37.1]} 27... Re8 {[%clk 0:00:50.9]} 28.
Ba4 {[%clk 0:00:35.1]} 28... b5 {[%clk 0:00:46.4]} 29. Bd1 {[%clk 0:00:33.6]}
29... Kf8 {[%clk 0:00:29.7]} 30. Kf2 {[%clk 0:00:33.4]} 30... Bxe4 {[%clk
0:00:27.8]} 31. Rxe4 {[%clk 0:00:29.2]} 31... Rxe4 {[%clk 0:00:27.2]} 32. fxe4
{[%clk 0:00:28.6]} 32... Nc6 {[%clk 0:00:27]} 33. Bf3 {[%clk 0:00:28]} 33... Ne5
{[%clk 0:00:26.2]} 34. Bg2 {[%clk 0:00:27.3]} 34... Rc2+ {[%clk 0:00:25.1]} 35.
Kg1 {[%clk 0:00:25.5]} 35... Ke7 {[%clk 0:00:24.3]} 36. Rb1 {[%clk 0:00:19.9]}
36... Ra2 {[%clk 0:00:23.1]} 37. Rb3 {[%clk 0:00:19.6]} 37... f6 {[%clk
0:00:20.7]} 38. Rc3 {[%clk 0:00:17.4]} 38... Nc4 {[%clk 0:00:19.3]} 39. Bh3
{[%clk 0:00:15.3]} 39... Rxa3 {[%clk 0:00:17.7]} 40. Rxa3 {[%clk 0:00:14]} 40...
Nxa3 {[%clk 0:00:18.6]} 41. Bf1 {[%clk 0:00:13.1]} 41... a6 {[%clk 0:00:16.8]}
42. Kf2 {[%clk 0:00:13.3]} 42... Kd6 {[%clk 0:00:16.9]} 43. Ke2 {[%clk
0:00:13.6]} 43... Ke5 {[%clk 0:00:17]} 44. Kd2 {[%clk 0:00:14.1]} 44... Nc4+
{[%clk 0:00:15.9]} 45. Kd3 {[%clk 0:00:13.9]} 45... Nb2+ {[%clk 0:00:13.5]} 46.
Ke3 {[%clk 0:00:13.3]} 46... Na4 {[%clk 0:00:11.2]} 47. h3 {[%clk 0:00:13]}
47... Nb2 {[%clk 0:00:10.1]} 48. g4 {[%clk 0:00:12.2]} 48... Nc4+ {[%clk
0:00:09.6]} 49. Kd3 {[%clk 0:00:11.8]} 49... Nd6 {[%clk 0:00:08.5]} 50. Bg2
{[%clk 0:00:11.2]} 50... g6 {[%clk 0:00:06.4]} 51. Ke3 {[%clk 0:00:08.5]} 51...
h5 {[%clk 0:00:05.9]} 52. gxh5 {[%clk 0:00:08.5]} 52... gxh5 {[%clk 0:00:06.6]}
53. h4 {[%clk 0:00:08.5]} 53... f5 {[%clk 0:00:05.5]} 54. exf5 {[%clk
0:00:08.2]} 54... Nxf5+ {[%clk 0:00:05.5]} 55. Kf3 {[%clk 0:00:07.4]} 55... Nd4+
{[%clk 0:00:05.2]} 56. Kf2 {[%clk 0:00:07.2]} 56... Nc2 {[%clk 0:00:05.9]} 57.
Bh3 {[%clk 0:00:07.2]} 57... Nxb4 {[%clk 0:00:06.7]} 58. Bc8 {[%clk 0:00:06.9]}
58... Kd4 {[%clk 0:00:07]} 59. Kg3 {[%clk 0:00:07.1]} 59... a5 {[%clk
0:00:06.9]} 60. Kf4 {[%clk 0:00:07.5]} 60... Kc5 {[%clk 0:00:07.1]} 61. Kg5
{[%clk 0:00:07.6]} 61... a4 {[%clk 0:00:07.4]} 62. Kxh5 {[%clk 0:00:07.7]} 62...
a3 {[%clk 0:00:07.4]} 63. Kg6 {[%clk 0:00:08.1]} 63... Nd3 {[%clk 0:00:06.4]}
64. Be6 {[%clk 0:00:07.5]} 64... Nf4+ {[%clk 0:00:04.2]} 65. Kf6 {[%clk
0:00:06.8]} 65... Nxe6 {[%clk 0:00:05.1]} 66. Kxe6 {[%clk 0:00:06.8]} 66... a2
{[%clk 0:00:06]} 67. h5 {[%clk 0:00:07.3]} 67... a1=Q {[%clk 0:00:06.9]} 68. h6
{[%clk 0:00:07.6]} 68... Qh1 {[%clk 0:00:07.4]} 69. Kf6 {[%clk 0:00:07.4]} 69...
Qxh6+ {[%clk 0:00:07.7]} 0-1